bitfinex/quotes_SOLUSD_20251006
["timestamp","ask_amount","ask_price","bid_price","bid_amount"]
[1759773421636,0.1,236.77,236.7,30.02]
[1759773421936,0.82,236.77,236.7,30.02]
[1759773422236,0.82,236.77,236.73,25.0241384]
[1759773422434,0.1,236.77,236.74,30.02]
[1759773423139,0.82,236.77,236.74,30.02]
[1759773425131,0.1,236.77,236.74,30.02]
[1759773425335,0.1,236.77,236.76,20.8]
[1759773425635,0.1,236.77,236.76,50.82]
[1759773426838,0.1,236.77,236.76,30.02]
[1759773427023,0.82,236.77,236.76,30.02]
[1759773428322,0.1,236.77,236.76,30.02]
[1759773428528,0.1,236.77,236.74,20.8]
[1759773428730,0.1,236.77,236.71,8.90534876]
[1759773428926,0.72,236.76,236.74,20.8]
[1759773429119,0.72,236.76,236.75,30.0]
[1759773431534,0.72,236.76,236.71,131.5]
[1759773431844,4.32353931,236.77,236.72,30.0]
[1759773431845,0.72,236.75,236.72,30.0]
[1759773432017,0.82,236.77,236.73,30.0]
[1759773432223,0.72,236.76,236.73,30.0]
[1759773432521,0.1,236.77,236.73,30.49]
[1759773432858,0.1,236.77,236.73,30.0]
[1759773433241,0.1,236.77,236.76,20.8]
[1759773433435,0.82,236.77,236.76,50.8]
[1759773434531,0.1,236.77,236.76,50.8]
[1759773434939,0.82,236.77,236.76,20.8]
[1759773435122,0.82,236.77,236.76,50.8]
[1759773435322,0.82,236.77,236.76,20.8]
[1759773435550,0.82,236.77,236.76,50.8]
[1759773436046,0.82,236.77,236.76,30.0]
[1759773436645,0.82,236.77,236.71,135.7245638]
[1759773436646,5.04357454,236.77,236.74,20.8]
[1759773436844,0.72,236.76,236.74,50.8]
[1759773437051,0.72,236.75,236.74,50.8]
[1759773437628,4.94386483,236.75,236.74,50.8]
[1759773438353,4.94386483,236.75,236.74,30.0]
[1759773438648,4.94386483,236.75,236.72,20.8]
[1759773438854,0.68,236.74,236.72,50.8]
[1759773439046,0.1,236.77,236.72,50.8]
[1759773439047,0.68,236.73,236.72,50.8]
[1759773440552,0.68,236.76,236.72,50.8]
[1759773440845,0.1,236.77,236.72,50.8]
[1759773441049,0.68,236.76,236.72,50.8]
[1759773441244,0.68,236.75,236.72,50.8]
[1759773442550,0.1,236.77,236.73,0.49]
[1759773442854,0.1,236.77,236.74,30.0]
[1759773443357,0.1,236.77,236.74,30.49]
[1759773443541,0.1,236.77,236.74,30.0]
[1759773444958,0.1,236.77,236.74,34.22397033]
[1759773445162,0.1,236.77,236.74,30.0]
[1759773445647,0.1,236.77,236.74,34.22403316]
[1759773445850,0.1,236.77,236.74,4.71403316]
[1759773446060,0.1,236.77,236.75,30.0]
[1759773447629,0.1,236.77,236.76,30.0]
[1759773448435,0.1,236.77,236.73,4.71413985]
[1759773448636,0.1,236.77,236.74,30.0]
[1759773448835,0.1,236.77,236.76,20.8]
[1759773449037,0.1,236.77,236.76,30.0]
[1759773449564,0.1,236.77,236.76,30.49]
[1759773449731,0.1,236.77,236.76,161.99]
[1759773449938,0.1,236.77,236.76,161.5]
[1759773451460,0.78,236.77,236.76,161.5]
[1759773451688,0.1,236.77,236.76,131.5]
[1759773451856,0.78,236.77,236.76,131.5]
[1759773452175,0.1,236.77,236.76,161.5]
[1759773453071,5.00359442,236.77,236.7,131.5]
[1759773453382,0.68,236.76,236.74,20.8]
[1759773453577,0.68,236.75,236.74,20.8]
[1759773453945,0.68,236.75,236.68,131.5]
[1759773454167,0.68,236.74,236.65,4.68085939]
[1759773454482,0.68,236.73,236.66,50.8]
[1759773454667,0.68,236.72,236.66,30.0]
[1759773454976,1.91567274,236.7,236.6,4.68085939]
[1759773455270,4.22511407,236.68,236.61,30.0]
[1759773455472,0.68,236.67,236.64,20.8]
[1759773455678,0.68,236.66,236.64,50.8]
[1759773455867,0.68,236.65,236.58,4.68085939]
[1759773456067,0.68,236.64,236.59,30.0]
[1759773456370,1.91567274,236.62,236.56,30.0]
[1759773456559,0.68,236.63,236.57,30.0]
[1759773456560,0.68,236.61,236.57,30.0]
[1759773456765,0.68,236.6,236.57,30.0]
[1759773456966,0.68,236.59,236.57,30.0]
[1759773457557,0.68,236.58,236.57,30.0]
[1759773458481,0.68,236.6,236.57,30.0]
[1759773458683,0.68,236.59,236.57,30.0]
[1759773458875,0.68,236.58,236.57,30.0]
[1759773459061,0.68,236.58,236.52,21.29]
[1759773459378,0.68,236.58,236.53,30.02]
[1759773459970,10.56364693,236.67,236.53,30.02]
[1759773460168,10.56364693,236.67,236.56,20.8]
[1759773460169,0.68,236.66,236.56,20.8]
[1759773460481,0.68,236.65,236.57,30.02]
[1759773460667,4.2252926,236.67,236.57,34.24692808]
[1759773460865,0.68,236.64,236.57,34.24692808]
[1759773463080,0.68,236.63,236.54,4.2252926]
[1759773463283,2.59567274,236.62,236.58,20.8]
[1759773463487,0.68,236.61,236.58,20.8]
[1759773463785,0.68,236.6,236.58,20.8]
[1759773463982,0.68,236.59,236.58,20.8]
[1759773464170,0.68,236.59,236.58,30.02]
[1759773465174,4.90672133,236.59,236.52,25.51797104]
[1759773465376,4.22672133,236.59,236.56,20.8]
[1759773465683,0.68,236.58,236.57,20.8]
[1759773465879,0.68,236.58,236.49,4.22836234]
[1759773466070,0.68,236.57,236.5,30.02]
[1759773466261,4.90713947,236.57,236.53,20.8]
[1759773466465,0.68,236.56,236.54,30.02]
[1759773466660,0.68,236.55,236.53,30.02]
[1759773467166,0.68,236.58,236.53,30.02]
[1759773467368,0.68,236.57,236.53,30.02]
[1759773468066,4.22689578,236.59,236.53,30.02]
[1759773468269,0.67,236.58,236.53,30.02]
[1759773468492,0.67,236.57,236.53,30.02]
[1759773468669,0.67,236.56,236.53,30.02]
[1759773470288,4.22707866,236.57,236.53,30.02]
[1759773470495,0.67,236.56,236.53,30.02]
[1759773470685,4.22707866,236.57,236.53,30.02]
[1759773470993,4.89586382,236.64,236.56,20.8]
[1759773471176,4.89586382,236.64,236.57,51.31]
[1759773471489,0.67,236.69,236.58,0.49]
[1759773471693,0.67,236.69,236.61,20.8]
[1759773471885,0.67,236.69,236.62,30.02]
[1759773472196,0.67,236.68,236.62,30.02]
[1759773472393,0.67,236.68,236.62,34.24615362]
[1759773472690,0.67,236.7,236.62,34.73615362]
[1759773472906,0.67,236.7,236.65,20.8]
[1759773473191,0.67,236.7,236.66,30.02]
[1759773473385,4.22440013,236.72,236.66,30.02]
[1759773473593,0.67,236.69,236.66,30.02]
[1759773474581,4.22437551,236.73,236.66,30.02]
[1759773474784,4.89406918,236.74,236.67,0.49]
[1759773475075,13.24610387,236.77,236.69,20.8]
[1759773475291,13.24610387,236.77,236.67,0.49]
[1759773475292,12.57610387,236.77,236.7,30.51]
[1759773475675,0.1,236.77,236.7,30.51]
[1759773476696,0.1,236.77,236.7,34.73471269]
[1759773477695,0.1,236.77,236.71,4.71456055]
[1759773478498,4.32352085,236.77,236.7,30.51]
[1759773478897,0.1,236.77,236.71,0.49]
[1759773480298,4.32355714,236.77,236.71,0.49]
[1759773481700,4.32355714,236.77,236.72,30.02]
[1759773481909,4.99355714,236.77,236.72,30.02]
[1759773482704,0.67,236.76,236.73,30.02]
[1759773482907,0.67,236.75,236.74,30.02]
[1759773483406,4.32355714,236.77,236.74,30.02]
[1759773483801,0.67,236.76,236.74,30.02]
[1759773484611,0.67,236.75,236.69,3.42818979]
[1759773484798,0.67,236.75,236.68,131.5]
[1759773484799,0.67,236.74,236.72,30.02]
[1759773484992,0.67,236.73,236.72,30.02]
[1759773485703,0.67,236.73,236.68,20.8]
[1759773485903,0.67,236.72,236.63,4.2258296]
[1759773486081,0.67,236.71,236.63,4.7158296]
[1759773486287,0.67,236.71,236.67,20.8]
[1759773486588,4.89478741,236.7,236.68,30.02]
[1759773486815,0.67,236.69,236.68,30.02]
[1759773487896,0.67,236.72,236.68,30.02]
[1759773488186,0.67,236.71,236.68,30.02]
[1759773488988,4.89472149,236.71,236.67,20.8]
[1759773489292,0.67,236.7,236.68,30.02]
[1759773489888,0.67,236.7,236.67,20.8]
[1759773490212,0.67,236.69,236.68,30.02]
[1759773490798,0.67,236.69,236.67,20.8]
[1759773491004,0.67,236.69,236.68,30.02]
[1759773491520,4.22484049,236.7,236.68,30.02]
[1759773491716,0.67,236.69,236.58,9.89156712]
[1759773491937,0.67,236.68,236.59,30.02]
[1759773492110,4.8952926,236.67,236.62,20.8]
[1759773492309,0.67,236.66,236.63,30.02]
[1759773492993,4.2252926,236.67,236.63,30.02]
[1759773493320,4.22493556,236.69,236.63,30.51]
[1759773493611,4.22493556,236.69,236.63,30.02]
[1759773494627,4.22493556,236.69,236.62,20.8]
[1759773494927,4.22493556,236.69,236.63,30.02]
[1759773496036,4.89493556,236.69,236.63,30.02]
[1759773496526,24.79110972,236.71,236.64,30.02]
[1759773496527,4.2252926,236.67,236.64,30.02]
[1759773497213,11.23298287,236.71,236.64,30.02]
[1759773497519,0.67,236.72,236.65,0.49]
[1759773498310,4.22472229,236.71,236.65,0.49]
[1759773498713,4.90472229,236.71,236.64,30.02]
[1759773500317,0.68,236.72,236.65,0.49]
[1759773500523,0.68,236.75,236.67,20.8]
[1759773500707,0.68,236.75,236.68,30.02]
[1759773500906,4.32351981,236.77,236.68,30.51]
[1759773501432,0.68,236.76,236.68,30.51]
[1759773502728,4.22386483,236.75,236.68,30.51]
[1759773504644,4.22386483,236.75,236.69,0.49]
[1759773504932,0.1,236.77,236.71,20.8]
[1759773505135,0.1,236.77,236.72,30.02]
[1759773505623,0.68,236.76,236.72,30.02]
[1759773505829,4.90370222,236.76,236.72,30.02]
[1759773506018,0.68,236.75,236.71,20.8]
[1759773506218,0.1,236.77,236.72,30.49]
[1759773506414,0.1,236.77,236.73,0.49]
[1759773506610,0.1,236.77,236.74,0.49]
[1759773507644,0.1,236.77,236.72,30.49]
[1759773508224,4.32351521,236.77,236.72,30.49]
[1759773510726,4.32351521,236.77,236.71,20.8]
[1759773510727,0.68,236.76,236.73,30.0]
[1759773510960,4.32351521,236.77,236.73,30.0]
[1759773511249,0.1,236.77,236.74,0.49]
[1759773511630,0.1,236.77,236.74,131.99]
[1759773511937,0.1,236.77,236.74,131.5]
[1759773513621,4.32356672,236.77,236.74,131.5]
[1759773513824,4.32356672,236.77,236.75,30.0]
[1759773514351,4.32356672,236.77,236.6,5.17085939]
[1759773514352,17.54965277,236.76,236.6,5.17085939]
[1759773514540,4.22493556,236.69,236.61,30.0]
[1759773514747,4.90493556,236.69,236.61,51.29]
[1759773515126,4.90493556,236.69,236.62,0.49]
[1759773516350,4.90493556,236.69,236.64,20.8]
[1759773516638,0.72,236.73,236.65,30.49]
[1759773517674,4.22440013,236.72,236.65,30.49]
[1759773517950,4.94440013,236.72,236.65,30.49]
[1759773519338,4.94368643,236.76,236.65,34.22561976]
[1759773519537,4.94368643,236.76,236.68,20.8]
[1759773519732,4.94368643,236.76,236.69,30.0]
[1759773519958,0.72,236.75,236.68,20.8]
[1759773520255,0.72,236.75,236.69,30.0]
[1759773520944,4.22404325,236.74,236.69,30.0]
[1759773521643,4.94404325,236.74,236.69,30.0]
[1759773521846,0.72,236.73,236.7,30.0]
[1759773522241,0.72,236.73,236.67,0.49]
[1759773522561,0.72,236.73,236.68,30.0]
[1759773523158,4.22440013,236.72,236.67,0.49]
[1759773523356,4.22440013,236.72,236.69,30.0]
[1759773524154,4.22440013,236.72,236.67,0.49]
[1759773524457,4.22440013,236.72,236.68,30.0]
[1759773524757,4.22440013,236.72,236.69,30.0]
[1759773525358,0.72,236.71,236.64,20.8]
[1759773525547,0.72,236.71,236.65,30.49]
[1759773525747,4.22440013,236.72,236.65,30.49]
[1759773526359,4.22440013,236.72,236.65,0.49]
[1759773526558,4.22440013,236.72,236.66,30.0]
[1759773527059,4.22440013,236.72,236.67,30.0]
[1759773527357,4.94440013,236.72,236.67,30.0]
[1759773529960,4.94440013,236.72,236.65,0.49]
[1759773530152,4.94440013,236.72,236.66,30.0]
[1759773530759,4.94440013,236.72,236.65,0.49]
[1759773530960,4.94440013,236.72,236.67,30.0]
[1759773531165,0.69,236.71,236.67,30.0]
[1759773531866,0.69,236.71,236.65,0.49]
[1759773532068,4.22475707,236.7,236.66,30.0]
[1759773532246,4.22475707,236.7,236.66,0.49]
[1759773532568,4.22475707,236.7,236.67,30.0]
[1759773533571,4.91458398,236.71,236.67,30.0]
[1759773535066,14.78415138,236.74,236.67,30.0]
[1759773535270,0.69,236.71,236.67,30.0]
[1759773535571,0.69,236.71,236.65,0.49]
[1759773535751,0.69,236.71,236.66,30.0]
[1759773535949,0.69,236.71,236.66,30.49]
[1759773536163,0.69,236.73,236.66,30.49]
[1759773536566,4.22440013,236.72,236.66,30.49]
[1759773536958,0.69,236.71,236.66,30.0]
[1759773537277,0.69,236.71,236.66,30.49]
[1759773538670,4.91473169,236.71,236.66,30.49]
[1759773539170,0.69,236.7,236.64,20.8]
[1759773539464,0.69,236.7,236.67,30.0]
[1759773539656,4.22473169,236.71,236.67,30.0]
[1759773539856,0.69,236.7,236.67,30.0]
[1759773540052,4.91493428,236.7,236.67,30.0]
[1759773540253,4.91493428,236.7,236.64,21.29]
[1759773540458,4.91493428,236.7,236.59,5.17449388]
[1759773540459,0.69,236.69,236.59,5.17449388]
[1759773540671,3.68658878,236.68,236.59,0.49]
[1759773540973,3.68658878,236.68,236.6,30.0]
[1759773541162,0.69,236.67,236.6,50.8]
[1759773541471,0.69,236.66,236.6,30.0]
[1759773541672,0.69,236.65,236.61,30.0]
[1759773541865,0.69,236.64,236.6,20.8]
[1759773542052,4.22600684,236.63,236.6,20.8]
[1759773543078,4.22600684,236.63,236.61,30.0]
[1759773543472,4.22583617,236.64,236.61,30.0]
[1759773544064,4.22583617,236.64,236.62,30.0]
[1759773544784,4.22547114,236.66,236.63,30.0]
[1759773545081,4.91547114,236.66,236.63,30.0]
[1759773545568,4.22547114,236.66,236.63,30.0]
[1759773545763,0.69,236.65,236.63,30.0]
[1759773546081,0.69,236.64,236.63,30.0]
[1759773546483,0.69,236.64,236.6,20.8]
[1759773546668,0.69,236.63,236.61,30.0]
[1759773546872,4.91618544,236.62,236.54,9.40207665]
[1759773547050,4.91618544,236.62,236.55,0.49]
[1759773547256,4.91618544,236.62,236.58,20.8]
[1759773547475,0.69,236.61,236.59,30.0]
[1759773547957,4.9165143,236.61,236.59,30.0]
[1759773548175,4.2265143,236.61,236.59,30.0]
[1759773548383,0.69,236.6,236.59,30.0]
[1759773548567,0.69,236.6,236.56,20.8]
[1759773548885,4.2265143,236.61,236.52,11.54804922]
[1759773548886,0.69,236.59,236.52,11.54804922]
[1759773549060,0.69,236.59,236.53,30.0]
[1759773549381,17.78901322,236.61,236.46,12.41806341]
[1759773549382,0.69,236.58,236.52,20.8]
[1759773549579,0.69,236.58,236.53,30.0]
[1759773549799,0.69,236.57,236.51,20.8]
[1759773549958,0.69,236.57,236.52,30.0]
[1759773550159,15.48540073,236.56,236.48,0.49]
[1759773550367,15.48540073,236.56,236.49,30.0]
[1759773550684,0.69,236.55,236.47,5.66672663]
[1759773550859,3.68658878,236.54,236.48,30.0]
[1759773551054,3.68658878,236.54,236.44,0.49]
[1759773551055,2.99658878,236.53,236.44,0.49]
[1759773551257,2.99658878,236.53,236.45,28.02]
[1759773551572,2.99658878,236.5,236.46,30.0]
[1759773551758,0.69,236.49,236.46,30.0]
[1759773551959,0.69,236.48,236.46,30.0]
[1759773552160,0.69,236.47,236.46,30.0]
[1759773552609,0.69,236.47,236.45,30.0]
[1759773552963,0.69,236.46,236.42,20.8]
[1759773553275,0.69,236.46,236.43,30.0]
[1759773553673,0.69,236.45,236.43,30.0]
[1759773554307,4.9194028,236.44,236.42,30.0]
[1759773554793,0.69,236.43,236.42,30.0]
[1759773555004,0.69,236.43,236.37,0.69]
[1759773555504,0.69,236.43,236.38,30.0]
[1759773556494,4.22976059,236.42,236.38,30.0]
[1759773557583,11.26350702,236.44,236.38,30.0]
[1759773558103,11.26350702,236.44,236.37,21.49]
[1759773558104,0.66,236.43,236.37,0.2]
[1759773558294,0.66,236.43,236.39,30.0]
[1759773558492,0.66,236.42,236.39,30.0]
[1759773558808,0.66,236.41,236.39,30.0]
[1759773559105,0.66,236.4,236.39,30.0]
[1759773559301,0.66,236.42,236.37,0.2]
[1759773559513,12.49540302,236.44,236.38,30.0]
[1759773559514,10.57350702,236.44,236.38,30.0]
[1759773559686,4.23011844,236.4,236.38,30.0]
[1759773560491,4.89011844,236.4,236.38,30.0]
[1759773561600,4.89011844,236.4,236.37,0.2]
[1759773561794,0.66,236.39,236.38,30.0]
[1759773562694,4.23011844,236.4,236.38,30.0]
[1759773563297,0.66,236.45,236.38,30.49]
[1759773563610,4.22868741,236.48,236.41,20.8]
[1759773563807,0.66,236.49,236.42,30.0]
[1759773564199,0.66,236.49,236.37,0.2]
[1759773564200,0.66,236.48,236.39,0.49]
[1759773564400,2.581896,236.48,236.4,30.0]
[1759773564606,0.66,236.47,236.4,30.0]
[1759773564807,0.66,236.46,236.4,30.0]
[1759773565112,1.921896,236.48,236.4,30.0]
[1759773565113,0.66,236.45,236.4,30.0]
[1759773565414,0.66,236.44,236.4,30.0]
[1759773565599,0.66,236.43,236.37,0.2]
[1759773565803,0.66,236.43,236.38,30.02]
[1759773566122,0.66,236.42,236.38,30.02]
[1759773567320,0.66,236.41,236.38,30.02]
[1759773569215,4.23011844,236.4,236.38,30.02]
[1759773569908,4.23011844,236.4,236.37,0.2]
[1759773570111,4.89011844,236.4,236.39,30.02]
[1759773571712,4.89011844,236.4,236.37,0.2]
[1759773571713,15.46541454,236.4,236.37,0.2]
[1759773571916,0.66,236.39,236.37,0.2]
[1759773572219,0.66,236.38,236.37,0.2]
[1759773573805,4.89047635,236.38,236.37,0.2]
[1759773576000,4.23047635,236.38,236.37,0.2]
[1759773577330,4.22976059,236.42,236.37,30.71]
[1759773577500,4.22976059,236.42,236.38,0.49]
[1759773577701,4.22957195,236.44,236.38,0.49]
[1759773579197,11.28350702,236.44,236.37,30.22]
[1759773579415,4.22922393,236.45,236.38,0.49]
[1759773581222,4.22904508,236.46,236.38,0.49]
[1759773582319,4.22904508,236.46,236.4,20.8]
[1759773582944,0.71,236.48,236.4,21.29]
[1759773583316,0.71,236.48,236.41,0.49]
[1759773583538,4.93869226,236.48,236.42,30.0]
[1759773584442,0.71,236.47,236.43,30.0]
[1759773584648,14.80041079,236.48,236.39,25.52024859]
[1759773584831,15.51041079,236.48,236.4,30.49]
[1759773585015,15.51041079,236.48,236.4,51.29]
[1759773585641,4.22869226,236.48,236.41,0.49]
[1759773586114,0.71,236.47,236.41,0.49]
[1759773586314,0.71,236.47,236.4,55.52010693]
[1759773586509,0.71,236.47,236.4,25.52010693]
[1759773586734,0.71,236.47,236.41,30.0]
[1759773587645,4.22904508,236.46,236.41,30.0]
[1759773587838,4.93904508,236.46,236.41,30.0]
[1759773588030,4.93904508,236.46,236.4,21.29]
[1759773588239,0.7,236.45,236.41,30.0]
[1759773588422,0.7,236.44,236.42,30.0]
[1759773589250,4.22958169,236.43,236.42,30.0]
[1759773590461,4.92958169,236.43,236.37,0.2]
[1759773590745,6.85147769,236.43,236.38,30.0]
[1759773590916,0.7,236.42,236.38,30.0]
[1759773591317,0.7,236.41,236.38,30.0]
[1759773591516,0.7,236.4,236.38,30.0]
[1759773591953,0.7,236.4,236.37,30.2]
[1759773591954,0.7,236.39,236.37,30.2]
[1759773592755,0.7,236.38,236.37,30.2]
[1759773593247,4.93047635,236.38,236.37,30.2]
[1759773594256,4.23047635,236.38,236.37,30.2]
[1759773594439,4.93047635,236.38,236.37,30.2]
[1759773596453,4.93047635,236.38,236.37,0.2]
[1759773596952,4.23047635,236.38,236.37,0.2]
[1759773597426,4.93047635,236.38,236.37,0.2]
[1759773601426,17.72884756,236.38,236.37,1e-08]
[1759773601625,17.72884756,236.38,236.36,0.2]
[1759773601626,10.87647521,236.37,236.33,1e-08]
[1759773601816,1.921896,236.34,236.33,1e-08]
[1759773602221,2.621896,236.34,236.33,1e-08]
[1759773602442,0.7,236.34,236.33,1e-08]
[1759773602635,14.80666722,236.38,236.33,1e-08]
[1759773602837,0.7,236.36,236.33,1e-08]
[1759773603022,1.921896,236.42,236.33,1e-08]
[1759773603224,0.7,236.35,236.33,1e-08]
[1759773604327,0.7,236.34,236.33,1e-08]
[1759773605140,4.93119235,236.34,236.33,1e-08]
[1759773606853,17.72956356,236.34,236.33,1e-08]
[1759773607241,4.93119235,236.34,236.33,1e-08]
[1759773610052,6.85308835,236.34,236.33,1e-08]
[1759773611056,4.93119235,236.34,236.33,1e-08]
[1759773613967,10.87647521,236.33,236.29,1e-08]
[1759773614142,58.30754443,236.34,236.18,0.2]
[1759773614143,10.87647521,236.29,236.18,0.2]
[1759773614464,1.921896,236.22,236.18,0.2]
[1759773614772,16.73921955,236.21,236.18,0.2]
[1759773615065,4.23352101,236.21,236.18,0.2]
[1759773616267,4.93327028,236.23,236.18,0.2]
[1759773616866,4.23296719,236.25,236.19,0.49]
[1759773617456,4.23296719,236.25,236.18,0.2]
[1759773617682,4.93296719,236.25,236.18,0.2]
[1759773618084,4.23296719,236.25,236.18,0.69]
[1759773619072,17.82300504,236.25,236.18,0.2]
[1759773619270,0.67,236.24,236.18,0.2]
[1759773620096,4.2325718,236.27,236.2,20.8]
[1759773620264,4.9025718,236.27,236.2,20.8]
[1759773620763,4.9025718,236.27,236.2,30.0]
[1759773621085,15.48368662,236.27,236.2,30.0]
[1759773621974,15.48368662,236.27,236.19,30.49]
[1759773622154,14.81368662,236.27,236.19,30.0]
[1759773622354,3.00802727,236.25,236.18,51.0]
[1759773622578,0.67,236.24,236.18,30.2]
[1759773622797,0.67,236.23,236.18,30.2]
[1759773623004,0.67,236.22,236.18,0.2]
[1759773624415,14.81732355,236.21,236.18,0.2]
[1759773624574,0.67,236.2,236.18,0.2]
[1759773625009,10.87647521,236.19,236.18,0.2]
[1759773625213,11.54647521,236.19,236.18,0.2]
[1759773626207,15.78035471,236.19,236.18,0.2]
[1759773627683,15.78035471,236.19,236.18,1e-08]
[1759773627890,18.78838198,236.19,236.18,1e-08]
[1759773631080,10.87647521,236.15,236.13,0.2]
[1759773631285,3.00802727,236.14,236.13,1e-08]
[1759773631484,3.67802727,236.14,236.13,1e-08]
[1759773632111,7.91280325,236.14,236.13,1e-08]
[1759773636128,7.91280325,236.14,235.98,15.5]
[1759773636129,10.87647521,236.13,235.95,25.03800818]
[1759773636413,3.00802727,236.09,236.01,0.49]
[1759773636713,14.82611089,236.07,235.97,0.2]
[1759773636934,0.72,236.06,235.98,0.49]
[1759773637712,0.72,236.06,235.97,0.2]
[1759773637713,13.88450248,236.05,235.97,0.2]
[1759773637914,0.72,236.04,235.97,0.2]
[1759773638323,10.87647521,236.03,235.97,0.2]
[1759773638503,0.72,236.02,235.97,0.2]
[1759773638700,14.82925175,236.02,235.97,0.2]
[1759773638911,15.54925175,236.02,235.97,0.2]
[1759773639501,0.72,236.01,235.97,0.2]
[1759773639699,14.82925175,236.02,235.97,0.2]
[1759773639700,0.72,236.0,235.97,0.2]
[1759773639942,14.82925175,236.02,235.97,0.2]
[1759773640523,0.72,236.01,235.97,0.2]
[1759773640824,4.23674493,236.04,235.98,0.49]
[1759773641414,14.82817011,236.04,235.98,0.49]
[1759773643111,14.82611089,236.07,235.98,0.49]
[1759773643332,15.54611089,236.07,235.98,0.49]
[1759773644910,15.54611089,236.07,235.97,0.2]
[1759773645106,10.87647521,236.06,235.97,0.2]
[1759773645421,14.82736707,236.05,235.97,0.2]
[1759773645748,4.23639059,236.05,235.98,0.49]
[1759773645927,0.72,236.09,235.98,0.49]
[1759773646305,0.72,236.09,236.01,20.8]
[1759773646512,43.90450248,236.15,236.04,20.8]
[1759773646513,4.95528227,236.12,236.04,20.8]
[1759773646840,4.95528227,236.12,236.05,0.49]
[1759773646841,4.23528227,236.12,236.05,0.49]
[1759773647044,0.72,236.14,236.05,0.49]
[1759773647045,4.23489405,236.14,236.05,0.49]
[1759773647216,4.23441734,236.16,236.05,4.72622943]
[1759773647418,4.95441734,236.16,236.06,0.49]
[1759773648138,15.54084521,236.16,236.06,0.49]
[1759773650044,18.54887248,236.16,236.03,0.49]
[1759773650247,15.54084521,236.16,236.05,0.49]
[1759773652136,15.54084521,236.16,236.07,20.8]
[1759773652316,0.66,236.15,236.07,20.8]
[1759773652511,0.66,236.14,236.07,20.8]
[1759773652916,10.58642787,236.16,236.07,20.8]
[1759773653222,0.66,236.13,236.07,20.8]
[1759773654042,10.58642787,236.16,236.08,0.49]
[1759773654244,11.24642787,236.16,236.08,0.49]
[1759773655131,15.48084521,236.16,236.08,0.49]
[1759773655428,15.48084521,236.16,236.08,4.72585178]
[1759773655620,4.89441734,236.16,236.08,4.72585178]
[1759773657528,0.66,236.15,236.07,25.0360204]
[1759773657728,0.66,236.14,236.07,50.82]
[1759773658028,0.66,236.13,236.07,50.82]
[1759773659147,0.66,236.13,236.1,20.8]
[1759773659440,4.23513467,236.12,236.1,20.8]